bitfinex/quotes_SOLUSD_20240915
["timestamp","ask_amount","ask_price","bid_price","bid_amount"]
[1726437486411,7.87795575,132.41,132.36,7.5547]
[1726437486593,15.43035575,132.41,132.37,7.5545]
[1726437491724,7.87795575,132.41,132.38,7.5539]
[1726437492395,15.43055575,132.41,132.37,18.8861]
[1726437492580,15.43055575,132.41,132.37,26.4402]
[1726437496802,7.87795575,132.41,132.37,18.8861]
[1726437497119,15.43035575,132.41,132.37,26.4403]
[1726437499210,7.87795575,132.41,132.37,26.4403]
[1726437500317,15.43055575,132.41,132.37,26.4403]
[1726437507224,14.93055575,132.41,132.37,26.4403]
[1726437511043,7.5529,132.4,132.37,18.8861]
[1726437517029,7.5534,132.39,132.36,7.555]
[1726437517231,0.2435,132.42,132.36,7.555]
[1726437517410,1.5607469,132.42,132.36,7.555]
[1726437517728,1.5607469,132.42,132.36,26.4428]
[1726437517729,7.553,132.4,132.36,26.4428]
[1726437519626,7.5524,132.41,132.37,7.5545]
[1726437524057,7.0524,132.41,132.37,7.5545]
[1726437530760,7.5529,132.4,132.37,7.5545]
[1726437531136,7.5525,132.41,132.37,7.5545]
[1726437536964,7.5529,132.4,132.36,26.4427]
[1726437540751,7.5529,132.4,132.37,7.5545]
[1726437541068,7.5524,132.41,132.37,7.5545]
[1726437541366,7.7953,132.42,132.38,7.5537]
[1726437541570,7.5523,132.41,132.38,7.5537]
[1726437542458,7.5523,132.41,132.37,7.5544]
[1726437549785,1.56073443,132.42,132.37,7.5544]
[1726437552360,7.5526,132.41,132.37,7.5544]
[1726437560273,9.11253443,132.42,132.38,7.5539]
[1726437565289,7.5523,132.41,132.38,7.5539]
[1726437565661,9.11243443,132.42,132.38,7.5539]
[1726437568297,7.5523,132.41,132.37,7.5543]
[1726437574005,9.11263443,132.42,132.39,7.5534]
[1726437574305,9.11263443,132.42,132.38,18.8847]
[1726437575308,9.11263443,132.42,132.38,26.4384]
[1726437582015,1.56073443,132.42,132.39,7.5531]
[1726437582188,0.2435,132.42,132.39,7.5531]
[1726437591522,0.2435,132.42,132.4,7.5525]
[1726437592031,0.2435,132.42,132.39,7.5533]
[1726437600526,0.2435,132.42,132.4,20.39206039]
[1726437600713,0.2435,132.42,132.41,7.5522]
[1726437601236,0.2435,132.42,132.41,9.06239723]
[1726437601443,0.2435,132.42,132.41,7.5522]
[1726437602233,0.2435,132.42,132.4,18.882]
[1726437602402,0.2435,132.42,132.37,18.8859]
[1726437602609,15.4926,132.41,132.34,18.8897]
[1726437602809,7.5541,132.38,132.34,18.8897]
[1726437603030,7.5541,132.38,132.34,26.4458]
[1726437603338,7.5546,132.37,132.33,7.5567]
[1726437603502,7.5546,132.37,132.32,7.5572]
[1726437604008,42.72,132.39,132.29,6.3814]
[1726437604215,7.5563,132.34,132.3,7.5584]
[1726437604416,7.5584,132.31,132.28,0.2435]
[1726437604844,7.5585,132.3,132.28,0.2435]
[1726437605214,7.5591,132.29,132.28,0.2435]
[1726437605425,7.5585,132.31,132.28,0.2435]
[1726437605815,30.2785,132.31,132.28,0.2435]
[1726437606023,7.5609,132.26,132.24,0.2435]
[1726437606428,7.5614,132.25,132.24,0.2435]
[1726437606735,7.5614,132.25,132.2,0.2435]
[1726437606736,7.5633,132.22,132.2,0.2435]
[1726437607620,23.776884,132.21,132.2,0.2435]
[1726437608320,31.340584,132.21,132.2,0.2435]
[1726437609110,23.776884,132.21,132.2,0.2435]
[1726437609347,7.5631,132.23,132.2,0.2435]
[1726437609636,23.776884,132.22,132.2,0.2435]
[1726437610030,7.5651,132.19,132.16,0.2435]
[1726437610327,23.776884,132.18,132.16,0.2435]
[1726437610835,23.776884,132.19,132.16,0.2435]
[1726437611147,23.776884,132.17,132.16,0.2435]
[1726437611315,6.3562,132.2,132.16,0.2435]
[1726437611515,20.0,132.24,132.16,0.2435]
[1726437611820,29.1311,132.25,132.19,7.5648]
[1726437612215,21.5692,132.25,132.21,7.5636]
[1726437612452,30.14926766,132.29,132.21,7.5636]
[1726437612652,23.04,132.29,132.21,7.5636]
[1726437613249,7.5611,132.26,132.21,7.5636]
[1726437614046,7.5603,132.27,132.22,7.563]
[1726437614539,0.2435,132.3,132.22,18.9068]
[1726437614863,0.2435,132.3,132.25,7.5611]
[1726437615254,0.2435,132.3,132.22,18.9068]
[1726437615546,9.46701248,132.3,132.22,18.9068]
[1726437616059,7.5607,132.27,132.22,26.4694]
[1726437616444,7.5608,132.27,132.21,7.5632]
[1726437617571,7.5608,132.27,132.22,7.5631]
[1726437619457,23.776884,132.29,132.24,18.904]
[1726437619970,7.8021,132.3,132.29,7.5591]
[1726437619971,0.2435,132.3,132.29,7.5591]
[1726437633371,0.2435,132.3,132.27,18.9005]
[1726437633566,0.2435,132.3,132.24,26.4668]
[1726437633774,31.337584,132.27,132.22,7.5625]
[1726437634078,23.776884,132.28,132.21,18.9088]
[1726437634256,23.776884,132.28,132.21,26.4723]
[1726437634582,7.561,132.26,132.21,26.472]
[1726437635155,7.561,132.26,132.22,7.563]
[1726437635481,23.776884,132.28,132.2,7.5641]
[1726437635482,7.5615,132.25,132.2,7.5641]
[1726437635981,7.5615,132.25,132.21,7.5636]
[1726437636585,23.776884,132.28,132.18,18.9127]
[1726437636759,20.0,132.25,132.16,7.8099]
[1726437636960,7.5633,132.22,132.17,7.5659]
[1726437637867,20.0,132.2,132.16,0.2435]
[1726437638068,31.342884,132.17,132.16,0.2435]
[1726437638982,23.776884,132.17,132.12,0.2435]
[1726437639294,7.5672,132.15,132.12,0.2435]
[1726437639882,7.5678,132.14,132.12,0.2435]
[1726437640186,23.776884,132.13,132.12,0.2435]
[1726437640362,31.345184,132.13,132.12,0.2435]
[1726437640985,31.345184,132.13,132.12,0.0960069]
[1726437641756,54.065184,132.13,132.12,0.0960069]
[1726437642076,51.345184,132.13,132.12,0.0960069]
[1726437642387,51.345184,132.13,132.1,0.2694891]
[1726437642388,31.346284,132.11,132.1,0.2694891]
[1726437644173,43.776884,132.1,132.06,3.9101141]
[1726437645276,31.348584,132.07,132.06,3.9101141]
[1726437645679,23.776884,132.07,132.06,3.9101141]
[1726437646271,31.348584,132.07,132.06,3.9101141]
[1726437647278,23.776884,132.08,132.06,3.9101141]
[1726437647593,393.202912,132.13,132.07,7.5716]
[1726437647804,22.4609,132.15,132.1,7.5699]
[1726437648098,1.3198755,132.13,132.1,7.5699]
[1726437648470,1.3198755,132.13,132.06,22.8405141]
[1726437648776,1.3198755,132.13,132.08,7.5711]
[1726437649380,8.8881755,132.13,132.08,7.5711]
[1726437649984,1.3198755,132.13,132.06,3.9101141]
[1726437650299,7.5704,132.1,132.06,3.9101141]
[1726437650881,31.347984,132.09,132.06,3.9101141]
[1726437651081,7.5711,132.08,132.06,3.9101141]
[1726437651408,31.348584,132.07,132.06,3.9101141]
[1726437651584,23.776884,132.07,132.06,3.9101141]
[1726437651773,46.496884,132.07,132.06,3.9101141]
[1726437651973,23.776884,132.07,132.06,3.9101141]
[1726437655507,15.2451,132.1,132.06,3.9101141]
[1726437655881,23.776884,132.09,132.06,3.9101141]
[1726437656286,31.347484,132.09,132.06,3.9101141]
[1726437656805,23.776884,132.09,132.06,3.9101141]
[1726437657003,385.6,132.12,132.06,3.9101141]
[1726437657305,385.6,132.12,132.08,7.5711]
[1726437657515,385.6,132.12,132.1,7.5699]
[1726437657693,385.6,132.12,132.09,7.5704]
[1726437659118,8.8882755,132.13,132.09,7.5704]
[1726437659303,23.776884,132.12,132.09,7.5704]
[1726437660386,23.776884,132.12,132.11,7.5694]
[1726437660593,1.3198755,132.13,132.11,18.9224]
[1726437660812,385.6,132.19,132.12,7.5688]
[1726437661016,1.31993611,132.17,132.12,7.5688]
[1726437661223,1.31993611,132.17,132.09,7.5705]
[1726437661406,18.9167,132.16,132.07,7.5715]
[1726437661723,7.569,132.12,132.08,7.5711]
[1726437662814,23.776884,132.12,132.08,7.5711]
[1726437663813,23.776884,132.12,132.09,7.5705]
[1726437664010,23.776884,132.12,132.07,18.9287]
[1726437664191,23.776884,132.12,132.09,7.5705]
[1726437664805,386.91993611,132.17,132.09,18.9257]
[1726437664994,0.45756819,132.12,132.09,18.9257]
[1726437665195,0.45756819,132.12,132.1,7.5699]
[1726437665910,0.45756819,132.12,132.09,18.9257]
[1726437666107,31.80335219,132.12,132.09,18.9257]
[1726437667131,31.80335219,132.12,132.06,29.3291141]
[1726437667132,7.5694,132.11,132.06,29.3291141]
[1726437667303,0.45756819,132.1,132.06,3.9101141]
[1726437667507,8.02766819,132.1,132.06,11.4822141]
[1726437668094,0.45756819,132.1,132.06,11.4822141]
[1726437668398,0.45756819,132.1,132.07,7.5716]
[1726437671020,0.45756819,132.1,132.06,22.8401141]
[1726437671219,23.776884,132.09,132.06,30.4123141]
[1726437671399,0.45756819,132.08,132.06,22.8401141]
[1726437671900,0.45756819,132.08,132.06,3.9101141]
[1726437672511,23.776884,132.07,132.06,3.9101141]
[1726437673628,31.348584,132.07,132.06,3.9101141]
[1726437673820,23.776884,132.07,132.06,3.9101141]
[1726437675640,31.348584,132.07,132.06,3.9101141]
[1726437676138,23.776884,132.07,132.06,3.9101141]
[1726437682149,0.45756819,132.08,132.07,7.5717]
[1726437682321,0.45756819,132.08,132.07,23.9748]
[1726437684319,0.45756819,132.08,132.07,27.84090549]
[1726437685529,1.3196327,132.16,132.14,7.5674]
[1726437685738,7.5656,132.18,132.14,7.5674]
[1726437686422,25.18935386,132.19,132.14,7.5674]
[1726437686624,25.18935386,132.19,132.15,18.9173]
[1726437686625,1.31955386,132.19,132.15,18.9173]
[1726437687242,1.31955386,132.19,132.11,6.0977]
[1726437687243,1.31955386,132.19,132.18,7.5654]
[1726437687437,1.31955386,132.19,132.15,7.567]
[1726437687653,0.2694891,132.21,132.17,7.5659]
[1726437687859,0.2694891,132.21,132.18,7.5653]
[1726437688045,0.2694891,132.21,132.19,7.5648]
[1726437688236,0.2694891,132.21,132.16,7.5661]
[1726437688237,7.8331891,132.21,132.16,7.5661]
[1726437688740,7.5643,132.2,132.16,7.5661]
[1726437689455,31.341884,132.19,132.15,18.9174]
[1726437690357,23.776884,132.16,132.12,26.4898]
[1726437690547,7.5677,132.15,132.1,7.5698]
[1726437690744,31.343584,132.16,132.11,7.5689]
[1726437691072,31.343484,132.16,132.11,7.5689]
[1726437692874,30.279584,132.16,132.09,18.926]
[1726437694043,23.776884,132.13,132.09,26.4961]
[1726437700271,23.776884,132.13,132.1,7.57]
[1726437700460,23.776884,132.13,132.09,18.926]
[1726437700461,7.5673,132.15,132.11,7.5692]
[1726437700669,14.0694,132.16,132.11,7.5692]
[1726437701978,23.776884,132.15,132.11,7.5692]
[1726437702349,31.343984,132.15,132.11,7.5692]
[1726437707360,7.5684,132.13,132.09,26.496]
[1726437708172,8.88817474,132.13,132.09,26.496]
[1726437709673,1.31977474,132.13,132.1,7.5694]
[1726437709860,1.31977474,132.13,132.09,18.926]
[1726437710066,31.344484,132.15,132.11,7.5694]
[1726437710382,23.776884,132.15,132.12,7.5688]
[1726437710560,23.776884,132.15,132.08,0.1735032]
[1726437710763,1.31980099,132.16,132.13,26.4879]
[1726437710967,7.637188,132.18,132.13,26.4879]
[1726437711192,7.5662,132.17,132.13,18.9201]
[1726437711576,7.5666,132.16,132.13,18.9201]
[1726437713689,7.5662,132.17,132.13,18.9201]
[1726437713893,23.776884,132.16,132.13,18.9201]
[1726437715295,31.343484,132.16,132.13,18.9201]
[1726437715992,23.776884,132.16,132.13,18.9201]
[1726437716211,23.776884,132.16,132.13,26.4882]
[1726437716883,23.776884,132.16,132.13,18.9201]
[1726437717196,31.343484,132.16,132.13,18.9201]
[1726437717795,7.5674,132.15,132.11,7.5692]
[1726437718590,23.776884,132.16,132.1,41.0476]
[1726437718591,7.5679,132.14,132.1,26.4935]
[1726437719582,7.5679,132.14,132.08,0.1735032]
[1726437719583,20.0,132.09,132.08,0.1735032]
[1726437719900,51.347384,132.09,132.08,0.1735032]
[1726437720197,54.068584,132.07,132.06,3.640625]
[1726437720396,7.5728,132.05,132.04,0.2450912]
[1726437720580,7.5728,132.05,132.0,35.08728816]
[1726437720581,22.72,132.04,132.0,35.08728816]
[1726437721077,20.0,132.04,132.0,35.08728816]
[1726437721278,42.72,132.04,132.0,34.08728816]
[1726437722078,7.575,132.02,132.0,34.08728816]
[1726437722280,20.0,132.04,132.0,34.08728816]
[1726437722479,7.5747,132.02,132.0,34.08728816]
[1726437722805,23.776884,132.01,132.0,34.08728816]
[1726437723673,31.351984,132.01,132.0,34.08728816]
[1726437723972,23.776884,132.01,132.0,34.08728816]
[1726437724580,31.351984,132.01,132.0,34.08728816]
[1726437725291,23.776884,132.01,132.0,34.08728816]
[1726437726386,31.351984,132.01,132.0,34.08728816]
[1726437729818,23.776884,132.01,132.0,34.08728816]
[1726437733822,1.32089085,132.03,132.0,34.08728816]
[1726437734017,1.32089085,132.03,132.0,41.66278816]
[1726437734723,1.32089085,132.03,132.0,34.08728816]
[1726437735202,31.351984,132.01,132.0,34.08728816]
[1726437735406,31.351984,132.01,131.96,0.2450912]
[1726437735407,51.354284,131.97,131.96,0.2450912]
[1726437735712,1.321,132.0,131.92,0.2450912]
[1726437735713,7.5793,131.94,131.92,0.2450912]
[1726437735908,7.87967032,131.95,131.92,0.2450912]
[1726437736299,7.5797,131.93,131.92,0.2450912]
[1726437736531,7.5797,131.93,131.88,6.8744912]
[1726437736532,43.776884,131.91,131.88,0.2046091]
[1726437736745,42.79,131.85,131.72,18.9792]
[1726437736899,42.79,131.85,131.71,0.03331305]
[1726437736900,31.366384,131.76,131.71,0.03331305]
[1726437737098,7.5895,131.76,131.71,7.62571305]
[1726437737317,7.5895,131.76,131.71,0.03331305]
[1726437737318,20.0,131.72,131.71,0.03331305]
[1726437737501,20.0,131.72,131.56,3.24]
[1726437737502,80.0,131.72,131.56,3.24]
[1726437737721,7.5956,131.66,131.56,3.24]
[1726437737894,23.776884,131.75,131.56,13.24]
[1726437738094,20.0,131.77,131.64,7.5961]
[1726437738325,7.5955,131.66,131.55,0.4591341]
[1726437738629,7.5946,131.68,131.61,7.598]
[1726437738797,7.5946,131.68,131.55,0.4591341]
[1726437738798,20.0,131.67,131.55,0.4591341]
[1726437738998,7.5956,131.66,131.55,0.4591341]
[1726437739224,20.0,131.67,131.55,0.4591341]
[1726437739399,20.0,131.63,131.55,0.4591341]
[1726437739603,23.776884,131.62,131.55,0.4591341]
[1726437739800,23.776884,131.6,131.55,0.4591341]
[1726437740114,50.0,131.65,131.55,0.4591341]
[1726437740115,23.776884,131.65,131.55,0.4591341]
[1726437740443,10.0,131.78,131.62,18.994]
[1726437740732,22.79,131.76,131.62,26.5912]
[1726437740933,22.79,131.76,131.62,18.994]
[1726437741730,42.79,131.75,131.62,18.994]
[1726437741939,42.79,131.75,131.6,6.3839]
[1726437741940,7.5944,131.68,131.6,13.9824]
[1726437742103,7.5955,131.66,131.6,6.3839]
[1726437742311,20.0,131.7,131.6,6.3839]
[1726437742503,7.5945,131.68,131.6,13.9824]
[1726437742722,23.776884,131.66,131.6,6.3839]
[1726437742933,20.0,131.68,131.6,6.3839]
[1726437743239,23.776884,131.68,131.62,7.5973]
[1726437743733,20.0,131.7,131.63,7.5967]
[1726437743906,7.5928,131.71,131.64,7.5962]
[1726437744306,7.5917,131.73,131.65,7.5957]
[1726437744513,20.0,131.72,131.61,23.776884]
[1726437744720,27.5919,131.72,131.61,23.776884]
[1726437745335,27.5919,131.72,131.6,6.3839]
[1726437745633,7.5925,131.71,131.64,7.596]
[1726437746415,23.776884,131.71,131.6,6.3839]
[1726437746618,23.776884,131.73,131.6,6.3839]
[1726437746948,7.593,131.7,131.63,7.5965]
[1726437747116,7.5942,131.68,131.62,7.5973]
[1726437747315,7.5942,131.68,131.6,6.3839]
[1726437747316,7.5935,131.7,131.63,7.5969]
[1726437747525,7.5935,131.7,131.64,7.5964]
[1726437747935,31.369284,131.71,131.65,7.5957]
[1726437748451,23.776884,131.71,131.66,7.5949]
[1726437748742,27.5921,131.72,131.66,7.5949]
[1726437748927,87.9372,131.8,131.69,7.5935]
[1726437749136,7.592,131.72,131.67,7.5947]
[1726437749446,7.5924,131.71,131.66,18.987]
[1726437749618,7.5915,131.73,131.66,26.5818]
[1726437749823,72.79,131.75,131.62,18.9928]
[1726437750040,83.22274883,131.75,131.62,18.9928]
[1726437750243,18.9784,131.73,131.63,7.597]
[1726437750540,43.776884,131.72,131.63,7.597]
[1726437750748,7.5936,131.69,131.63,7.597]
[1726437750917,20.0,131.7,131.62,18.9928]
[1726437751123,7.5929,131.71,131.66,7.5952]
[1726437751747,43.776884,131.72,131.6,22.07]
[1726437752139,43.776884,131.7,131.62,7.5976]
[1726437752554,7.5955,131.66,131.6,41.0658]
[1726437752756,7.5983,131.61,131.56,19.0013]
[1726437753346,7.6,131.58,131.55,0.4591341]
[1726437753530,43.776884,131.64,131.55,0.4591341]
[1726437753734,43.776884,131.64,131.56,19.0024]
[1726437754244,31.373284,131.64,131.58,7.5994]
[1726437754433,31.373284,131.64,131.59,7.599]
[1726437754845,7.5983,131.61,131.56,19.0024]
[1726437755139,20.0,131.64,131.56,19.0024]
[1726437755140,7.5977,131.62,131.56,19.0024]
[1726437755922,31.373884,131.63,131.57,7.5999]
[1726437756121,23.776884,131.63,131.56,19.0024]
[1726437756328,23.776884,131.63,131.55,8.0602341]
[1726437756329,7.5988,131.6,131.55,0.4591341]
[1726437756946,7.5995,131.59,131.55,0.4591341]
[1726437757845,7.5988,131.6,131.55,8.0607341]
[1726437758045,7.6007,131.57,131.55,0.4591341]
[1726437758261,31.376284,131.59,131.55,0.4591341]
[1726437758539,7.5999,131.58,131.55,0.4591341]
[1726437758744,7.6007,131.57,131.55,0.4591341]
[1726437759147,7.601,131.56,131.55,0.4591341]
[1726437759448,18.9982,131.6,131.55,0.4591341]
[1726437759449,20.0,131.6,131.55,0.4591341]
[1726437759742,7.5998,131.59,131.55,0.4591341]
[1726437759947,18.993,131.63,131.55,0.4591341]
[1726437759948,20.0,131.63,131.55,0.4591341]
[1726437760128,20.0,131.65,131.55,0.4591341]
[1726437760325,7.5981,131.62,131.57,7.6004]
[1726437760528,7.5977,131.62,131.56,7.6005]
[1726437760744,7.5989,131.6,131.56,19.0015]
[1726437761047,18.9887,131.66,131.56,26.6025]
[1726437761048,7.5977,131.62,131.56,26.6025]
[1726437761343,18.9887,131.66,131.56,19.0015]
[1726437761518,7.5982,131.61,131.56,19.0015]
[1726437762122,7.0982,131.61,131.56,19.0015]
[1726437762345,7.5994,131.59,131.55,6.8257341]
[1726437762552,7.5988,131.6,131.55,6.8257341]
[1726437763251,7.5997,131.59,131.55,6.8257341]
[1726437763450,7.6001,131.58,131.55,0.4591341]
[1726437763638,7.5994,131.59,131.55,0.4591341]
[1726437763839,23.776884,131.58,131.55,0.4591341]
[1726437764249,7.5989,131.6,131.55,0.4591341]
[1726437764746,22.79,131.61,131.55,0.4591341]
[1726437764953,23.776884,131.56,131.55,0.4591341]
[1726437765335,7.5999,131.58,131.55,0.4591341]
[1726437765533,7.5988,131.6,131.55,0.4591341]
[1726437765961,7.5988,131.6,131.55,8.0606341]
[1726437766131,7.5988,131.6,131.55,0.4591341]
[1726437766649,50.0,131.66,131.56,7.6006]
[1726437766650,7.5976,131.62,131.56,7.6006]
[1726437767062,7.5989,131.6,131.55,0.4591341]
[1726437767454,7.5989,131.6,131.55,8.0605341]
[1726437767646,18.9876,131.67,131.55,0.4591341]
[1726437767954,7.5958,131.66,131.6,7.5987]
[1726437768162,7.5958,131.66,131.6,7.5986]
[1726437768655,7.596,131.65,131.6,7.5986]
[1726437769052,7.5954,131.66,131.6,7.5986]
[1726437769451,42.79,131.67,131.59,7.5993]
[1726437769655,42.79,131.67,131.6,18.9962]
[1726437769858,7.5953,131.66,131.6,26.5944]
[1726437770049,7.596,131.65,131.6,18.9962]
[1726437770251,7.5965,131.64,131.6,18.9962]
[1726437770561,7.5965,131.64,131.58,6.02]
[1726437770562,7.5965,131.64,131.58,13.6198]
[1726437770754,42.79,131.67,131.6,18.9967]
[1726437770962,30.387,131.69,131.62,18.9933]
[1726437771152,7.597,131.69,131.65,7.5958]
[1726437771341,15.1908,131.69,131.64,7.5963]
[1726437771653,7.597,131.69,131.65,7.5957]
[1726437771858,7.597,131.69,131.62,18.9933]
[1726437772234,15.1909,131.69,131.64,7.5964]
[1726437772970,7.597,131.71,131.62,18.9933]
[1726437773268,7.597,131.69,131.62,18.9933]
[1726437773892,7.597,131.69,131.64,7.5958]
[1726437774065,7.597,131.69,131.65,7.5958]
[1726437774266,15.1905,131.69,131.64,26.5868]
[1726437775268,7.597,131.69,131.64,26.5868]
[1726437775440,7.597,131.71,131.68,7.594]
[1726437775770,7.097,131.71,131.63,38.92009296]
[1726437775955,7.097,131.71,131.68,7.594]
[1726437776158,7.097,131.71,131.69,26.5772]
[1726437776345,6.597,131.73,131.69,26.5772]
[1726437776670,7.5903,131.75,131.69,26.5772]
[1726437776870,7.5897,131.76,131.69,18.9839]
[1726437777369,6.4748,131.8,131.69,18.9839]
[1726437777672,7.5902,131.75,131.7,7.5929]
[1726437777877,0.4591341,131.81,131.71,18.9805]
[1726437778055,0.4591341,131.81,131.64,31.3257]
[1726437778056,0.4591341,131.81,131.69,38.92009296]
[1726437778261,7.5877,131.8,131.74,7.5902]
[1726437778468,7.5877,131.8,131.75,7.5901]
[1726437778655,7.5877,131.8,131.75,7.59]
[1726437778656,7.5873,131.8,131.75,7.59]
[1726437778852,7.5873,131.8,131.73,25.0346]
[1726437778853,0.4591341,131.81,131.73,6.0577]
[1726437779072,7.5895,131.77,131.73,6.0577]
[1726437780169,7.5884,131.78,131.73,13.6489]
[1726437780353,7.5879,131.79,131.73,6.0577]
[1726437780673,8.0458341,131.81,131.73,6.0577]
[1726437780979,0.4591341,131.81,131.77,7.5884]
[1726437781576,0.4591341,131.81,131.73,44.97779296]
[1726437781782,0.4591341,131.81,131.73,6.0577]
[1726437781958,7.5881,131.79,131.74,7.5906]
[1726437782476,0.4591341,131.81,131.73,6.0577]
[1726437782782,0.4591341,131.81,131.74,1.51768962]
[1726437783095,0.4591341,131.81,131.8,7.5872]
[1726437783655,0.4591341,131.81,131.73,6.0577]
[1726437784052,0.4591341,131.81,131.8,7.5872]
[1726437784253,8.0462341,131.81,131.75,7.5895]
[1726437784464,8.0462341,131.81,131.76,7.5891]
[1726437784670,8.0462341,131.81,131.77,7.5889]
[1726437784671,0.4591341,131.81,131.77,7.5889]
[1726437784890,0.4591341,131.81,131.78,7.5882]
[1726437785055,0.4591341,131.81,131.77,18.9719]
[1726437785461,0.4591341,131.81,131.79,7.5876]
[1726437785662,0.4591341,131.81,131.77,18.9719]
[1726437785863,8.0457341,131.81,131.77,18.9719]
[1726437786065,8.0457341,131.81,131.74,18.976]
[1726437786577,0.4591341,131.81,131.73,6.0577]
[1726437786963,8.0459341,131.81,131.76,7.5892]
[1726437787278,0.4591341,131.81,131.73,6.0577]
[1726437787772,0.4591341,131.81,131.75,7.5901]
[1726437787773,7.5883,131.79,131.75,7.5901]
[1726437787964,0.4591341,131.81,131.77,7.5884]
[1726437788165,0.4591341,131.81,131.73,6.0577]
[1726437788689,20.4591341,131.81,131.72,15.268]
[1726437788973,43.2491341,131.81,131.72,15.268]
[1726437789177,43.2491341,131.81,131.69,6.3101]
[1726437789178,7.5899,131.76,131.71,7.5919]
[1726437789359,7.5905,131.75,131.7,26.5739]
[1726437789987,7.5899,131.76,131.7,18.9814]
[1726437790168,27.5891,131.77,131.72,7.5918]
[1726437790478,7.5891,131.77,131.72,7.5918]
[1726437791479,20.0,131.79,131.72,18.979]
[1726437791679,27.5878,131.79,131.74,7.5903]
[1726437792072,7.5884,131.78,131.73,7.5911]
[1726437793554,7.5878,131.79,131.72,18.979]
[1726437793760,0.4591341,131.81,131.77,7.5889]
[1726437794084,0.4591341,131.81,131.75,7.59]
[1726437795281,7.5878,131.79,131.75,7.59]
[1726437796163,0.4591341,131.81,131.71,38.92009296]
[1726437796359,0.4591341,131.81,131.72,23.776884]
[1726437796667,0.4591341,131.81,131.69,45.23019296]
[1726437796869,7.5887,131.78,131.69,6.3101]
[1726437797054,7.5889,131.77,131.73,26.5683]
[1726437797253,0.4591341,131.81,131.73,18.9771]
[1726437797456,0.4591341,131.81,131.75,7.59]
[1726437797457,7.5877,131.8,131.75,7.59]
[1726437798280,7.5879,131.79,131.74,7.5905]
[1726437798660,7.5879,131.79,131.75,7.5901]
[1726437798868,0.4591341,131.81,131.76,7.5894]
[1726437799582,0.4591341,131.81,131.77,7.5887]
[1726437799583,0.493055,131.81,131.77,7.5887]
[1726437799991,0.493055,131.81,131.76,7.5894]
[1726437799992,8.079755,131.81,131.76,7.5894]
[1726437800362,0.493055,131.81,131.69,45.23019296]
[1726437800667,0.493055,131.81,131.72,23.776884]
[1726437800886,0.493055,131.81,131.78,7.5883]
[1726437803590,0.493055,131.81,131.79,7.5877]
[1726437803792,0.493055,131.81,131.8,9.10468194]
[1726437803979,0.493055,131.81,131.8,7.5872]
[1726437804182,0.493055,131.81,131.77,6.2393]
[1726437804695,0.493055,131.81,131.77,13.8278]
[1726437805168,0.493055,131.81,131.78,7.5882]
[1726437805372,0.493055,131.81,131.79,7.5877]
[1726437805978,0.493055,131.81,131.77,13.8281]
[1726437806177,0.493055,131.81,131.78,7.5883]
[1726437806573,0.493055,131.81,131.74,6.0773]
[1726437806783,7.5873,131.8,131.74,6.0773]
[1726437807683,0.493055,131.81,131.74,6.0773]
[1726437808013,7.5891,131.77,131.72,7.5914]
[1726437808298,7.5891,131.77,131.72,26.5699]
[1726437808601,7.5908,131.74,131.7,7.5929]
[1726437809096,7.5902,131.75,131.7,7.5929]
[1726437809683,7.5907,131.74,131.69,26.5768]
[1726437810080,7.5916,131.73,131.69,18.9834]
[1726437810297,23.776884,131.73,131.66,18.9873]
[1726437810496,23.776884,131.71,131.63,18.9919]
[1726437810901,7.5941,131.69,131.64,7.5963]
[1726437811095,23.776884,131.71,131.63,18.9919]
[1726437811303,43.776884,131.69,131.6,40.7606]